Workbook

Sheet Camp «familial» 2019
D2: Calculateur de cout de séjour CF 2019 | H2: SVP bien lire les instructions avant d'utiliser ! | K2: Ceci est un modèle Excel. Les formules qui le compose sont normalement inaltérables. Si vous voulez conserver les données produites simplement enregistrer le tout. Pour utiliser un nouoveau formulaire, alors rouvrir le modèle.
BB4: =IF(AND(F5=7,#REF!=3),AX4,IF(AND(F5=5,#REF!=3),AY4,IF(AND(F5=2,#REF!=3),AZ4,IF(AND(F5=7,#REF!=4),AX5,IF(AND(F5=5,#REF!=4),AY5,IF(AND(F5=2,#REF!=4),AZ5,IF(AND(F5=7,#REF!=5),AX6," "))))))) -> 
E5: Forfait : | G5: # nuitées | H5: À partir du : | K5: Si vous voulez effacer une entrée, SVP utilisez «Effacez le contenu» avec un «clic» à droite.
H7: Jusqu'au : | I7: =IF(F5=7,(I5+7),(IF(F5=5,(I5+5),(IF(F5=2,(I5+2),""))))) ->  | K7: Ce calculateur permet d'évaluer le cout pour un séjour pour une famille en forfait Camp familial au Centre Plein Air l'Étincelle. | AL7: 2
E8: En jaune … | F8: cases à remplir directement | AL8: 5
B9: www.cpaetincelle.com | E9: En vert … | F9: cases à choix de la liste déroulante | AH9: =IF(H15=" "," ",IF(H15>0,($I$5-H15)/365.00274)) ->  | AL9: 7
B10: infos.etincelle@xplornet.com | AJ10: Chambre # | AK10: Jumelage
B11: RESPONSABLE DE LA FAMILLE | K11: Il s'agit d'abord d'inscrire la durée du séjour en F 5, la date du début du séjour en I 5 (AA/MM/JJ). | AI11: À confirmer | AJ11: 1 | AK11: OUI | AO11: =(385-350)/385 -> 0.09090909091
B12: Prénom : | F12: Nom : | O12: Notez que pour l'évaluation du code de rabais, tous les membres d'une même famille doivent être pris en considération. Parent(s) (selon 1 ou 2 parents) et le ou les enfants de moins de 18 ans, ceci indépendamment qu'ils participent ou non au séjour. | AI12: Lien | AJ12: 2 | AK12: NON
AI13: Père | AJ13: 3 | AK13: N/A
B14: Prénom | D14: Nom | F14: Lien | G14: Âge | H14: Date de naissance (aa/mm/jj) | K14: Ensuite, inscrire prénom et nom des participants de la famille. | AI14: Mère | AJ14: 4
B15: =IF(C12=" "," ",C12) ->  | D15: =IF(G12=" "," ",G12) ->  | E15: =#REF! ->  | AI15: Fils | AJ15: 5 | AK15: Sexe
G16: =IF(H16=" "," ",ROUNDDOWN(AH10,0)) ->  | AI16: Fille | AJ16: 6 | AK16: Homme
G17: =IF(H17=" "," ",ROUNDDOWN(AH11,0)) ->  | K17: Les dates de naissances qui sont importantes sont celles des enfants de moins de 4 ans au moment du séjour. | AH17: =COUNTIF(G16:G21,"<=3") -> 0 | AJ17: 7 | AK17: Femme
Q18: Code 3 | R18: Code 2 | S18: Code 1 | T18: Code 0 | AH18: =COUNTIF(G16:G21,">=1") -> 0 | AI18: Enf. de l'homme | AK18: Garçon
Q19: -50.0% | R19: -40.0% | S19: -15.0% | T19: 0% | AH19: =AH17-AH18 -> 0 | AI19: Enf. de la femme | AK19: Fille
G20: =IF(H20=" "," ",ROUNDDOWN(AH14,0)) ->  | K20: Le code de rabais en G 28 doit être en lien avec la grille tarifaire. Code 0 = aucun rabais, Code 1 = 15 % de rabais, Code 2 = 40 % de rabais et Code 3 = 50 % de rabais. | Q20: - de | R20: à | S20: à | T20: + de | AI20: Grand-mère
G21: =IF(H21=" "," ",ROUNDDOWN(AH15,0)) ->  | O21: Revenu familial annuel selon le nombre de personnes composant la famille | P21: 1 | Q21: =R21-(R21*25%) -> 18,283 $ | R21: 24,377 $ | S21: =R21+(R21*25%) -> 30,471 $ | T21: =S21 -> 30,471 $ | AI21: Sœur
P22: 2 | Q22: 25,856 $ | R22: 34,474 $ | S22: =R22+(R22*25%) -> 43,093 $ | T22: 43,093 $ | AI22: Ami (e) | AM22: 7 jours | AN22: 5jours | AO22: 2jours | AS22: =AVERAGE(AP24:AR30) -> 13.52%
B23: Jumelage : | D23: Si oui, inscrire le # de personnes de plus de 4 ans à jumeler : | P23: 3 | Q23: 31,667 $ | R23: 42,222 $ | S23: 52,778 $ | T23: 52,778 $ | AH23: Rabais | AI23: =IF(C28=" "," ",IF(C28=7,AM23,IF(C28=5,AN23,IF(C28=2,AO23," ")))) ->  | AJ23: =IF(G28=0,0,ROUND((AI27*AK24),0)) -> 0 | AM23: 523 | AN23: 416 | AO23: 183
P24: 4 | Q24: 36,566 $ | R24: 48,754 $ | S24: 60,943 $ | T24: 60,943 $ | AH24: =IF(AK24=" "," ",D31*AK24*E31) ->  | AI24: =IF(D34=0,"0",IF(D34=1,"0",IF(D34=2,AL24,IF(D34=3,AL25,IF(D34=4,AL27,IF(D34=5,AL28,IF(D34=6,AL29,IF(D34=7,AL30,"0")))))))) -> 0 | AJ24: =IF(AI27=" "," ",AI27-AJ23) ->  | AK24: =IF($G$28=0," ",IF($G$28=1,AJ38,IF($G$28=2,AJ39,IF($G$28=3,AJ40,"0$")))) ->  | AL24: =AP24 -> 7.84% | AM24: 482 | AN24: 383 | AO24: 168 | AP24: =($AM$23-AM24)/$AM$23 -> 7.84% | AQ24: =(AN23-AN24)/AN23 -> 7.93% | AR24: =(AO23-AO24)/AO23 -> 8.20% | AS24: =AVERAGE(AP24:AR24) -> 7.99%
K25: Si un jumelage (dans une même chambre) est envisagée avec une autre famille (ex. : 2 mamans avec enfants se mettent ensemble pour économiser sur le cout) inscrire le nombre de personnes de plus de 4 ans de la famille qui sera jumelée. | P25: 5 | Q25: 40,882 $ | R25: 54,509 $ | S25: 68,136 $ | T25: 68,136 $ | AH25: =IF(AK25=" "," ",(D32*AK25*E32)) ->  | AI25: =IF(AI23=" "," ",IF(D31=0," ",ROUND((AI23*AI24),0))) ->  | AK25: =IF(D32=0," ",IF($G$28=0," ",IF($G$28=1,AJ38,IF($G$28=2,AJ39,IF($G$28=3,AJ40,"0"))))) ->  | AL25: 14.72% | AM25: 446 | AN25: 355 | AO25: 156 | AP25: =($AM$23-AM25)/$AM$23 -> 14.72% | AQ25: 7.31% | AR25: 7.14% | AS25: 9.73%
B26: Demande un rabais: | D26: OUI | F26: Revenu Familial en 2018 : | H26: Choisir le code de rabais de la grille tarifaire qui correspond au revenu familial et au nombre de personnes qui composent la famille. | P26: 6 | Q26: 44,783 $ | R26: 59,711 $ | S26: 74,639 $ | T26: 74,639 $ | AK26: =IF(D33=0," ",IF($G$28=0," ",IF($G$28=1,AJ38,IF($G$28=2,AJ39,IF($G$28=3,AJ40,"0"))))) -> 
P27: 7 | Q27: 48,371 $ | R27: 64,495 $ | S27: 80,619 $ | T27: 80,619 $ | AI27: =IF(AI23=" "," ",IF(D31=" "," ",IF(D31=0," ",(AI23-AI25)))) ->  | AJ27: =IF(AK25=" "," ",D32*E32*AK25) ->  | AL27: 20.65% | AM27: 415 | AN27: 330 | AO27: 145 | AP27: =($AM$23-AM27)/$AM$23 -> 20.65% | AQ27: =(AN25-AN27)/AN25 -> 7.04% | AR27: =(AO25-AO27)/AO25 -> 7.05% | AS27: 11.58%
B28: Forfait : | C28: =IF(F5=" "," ",IF(F5=0," ",F5)) ->  | F28: Code Rabais : | AI28: =IF(C28=" "," ",IF(C28=7,AM32,IF(C28=5,AN32,IF(C28=2,AO32," ")))) ->  | AJ28: =IF(G28=" "," ",IF(G28=0," ",ROUND((AI28*AK25),0))) ->  | AK28: =IF(AJ24>=176,AJ24,176) ->  | AL28: 27.34% | AM28: 380 | AN28: 302 | AO28: 133 | AP28: =($AM$23-AM28)/$AM$23 -> 27.34% | AQ28: 8.48% | AR28: 8.28% | AS28: 14.70%
AH29: =(G34*50/100)-D46 -> 0.00 $ | AJ29: =IF(AJ28=" "," ",E32-AJ28) ->  | AK29: =IF(AJ24>=140,AJ24,140) ->  | AL29: 33.84% | AM29: 346 | AN29: 275 | AO29: 121 | AP29: =($AM$23-AM29)/$AM$23 -> 33.84% | AQ29: 8.94% | AR29: 9.02% | AS29: 17.27%
B30: Coûts par personne : | D30: Nb. Pers, | E30: Coût rég./pers. | F30: *Coût réd./pers. | G30: Total rég. | H30: * Rabais-Total | I30: Total - final | O30: L'Évaluation du cout de séjour lui tiendra compte de seulement les membres de la famille qui eux participeront au séjour, lesquels corresponderont au taux d'occupation de la chambre pendant le séjour, d'où l'importance du jumelage pour les petites familles ou ajout d'une personne seule (ex : grand-maman) | AH30: 14 | AK30: =IF(AJ24>=61,AJ24,61) ->  | AL30: 40.15% | AM30: 313 | AN30: 249 | AO30: 109 | AP30: =($AM$23-AM30)/$AM$23 -> 40.15% | AQ30: 9.45% | AR30: 9.92% | AS30: 19.84%
B31: Occupation du # pers. en séjour | D31: =COUNTIF(B15:C21,">=a")-D32 -> 0 | E31: =AI27 ->  | F31: =IF(G28=" "," ",IF(G28=0,0,IF(F5=7,AK28,IF(F5=5,AK29,IF(F5=2,AK30,0))))) -> 0 | G31: =IF(D31=0,0,D31*E31) -> 0 | H31: =IF(AK24=" ",0,(E31-F31)*D31) -> 0 | I31: =G31-H31 -> 0 | AH31: 60 | AK31: =IF(AJ29>=AM33,AJ29,AM33) -> 
B32: # enfant de 3 ans et - | D32: =COUNTIF(G15:G21,"<=3") -> 0 | E32: =IF(D32=0," ",IF(F5=7,AM32,IF(F5=5,AN32,IF(F5=2,AO32," ")))) ->  | F32: =IF(D32=0,0,IF(F5=7,AK31,IF(F5=5,AK32,IF(F5=2,AK33,0)))) -> 0 | G32: =IF(D32=0," ",D32*E32) ->  | H32: =IF(AK25=" ",0,(E32-F32)*D32) -> 0 | I32: =IF(D32=0," ",G32-H32) ->  | K32: Ces personnes jumelées auront un impact sur le cout de séjour des deux familles et ce, selon leur propre % rabais qui lui leur est individuellement attribué. | AK32: =IF(AJ29>=AN33,AJ29,AN33) ->  | AM32: 125 | AN32: 99 | AO32: 43
B33: # enfant de moins de 12 mois (0$) | D33: =COUNTIF(AH9:AH15,"<=1") -> 0 | E33: =-IF(D33=0,0,IF(F5=7,AM32,IF(F5=5,AN32,IF(F5=2,AO32," ")))) -> 0 | F33: =IF(F32=" "," ",-IF(D33=0,0,IF(F5=7,AK31,IF(F5=5,AK32,IF(F5=2,AK33,0))))) -> 0 | G33: =IF(D33>0,(D33*E33),0) -> 0 | H33: =IF(AK26=" ",0,(E33-F33)*D33) -> 0 | I33: =IF(D33=0," ",G33-H33) ->  | AJ33: =IF(D31>3,3,D31) -> 0 | AK33: =IF(AJ29>=AO33,AJ29,AO33) ->  | AM33: =ROUNDUP(AM32/2,0) -> 63 | AN33: =ROUNDUP(AN32/2,0) -> 50 | AO33: 22
B34: # personnes de 4 ans et + jumelées | D34: =IF(D31=0," ",(D31+H23)) ->  | G34: =SUM(G31:G33) -> 0 | H34: =SUM(H31:H33) -> 0 | I34: =SUM(I31:I33) -> 0
K36: Enfin, si l'organisme octroi un montant $ de réduction aux familles participantes, alors veuillez l'ajouter en E 38 et alors le cout à payer par la famille en sera réduit d'autant … le résultat final en E 40
B37: Cout de séjour pour la famille : | E37: =I34 -> 0 | AI37: 0 | AJ37: 0.0%
B38: Réduction offerte par l'organisme | AI38: 1 | AJ38: 15.0%
AI39: 2 | AJ39: 40.0%
B40: Cout à payer par la famille : | E40: =E37-E38 -> 0 | AI40: 3 | AJ40: 50.0%
